Workbook

Sheet CILJEVI
B1: =TODAY() -> 2017-05-09 | C1: CILJEVI | J1: Vježbanje | K1: Prehrana
B2: DATUM POČETKA | C2: DNEVNIK PREHRANE I VJEŽBANJA
B3: =DatumPočetka+121 -> 2017-09-07 | C3: ANALIZA PREHRANE
B5: DATUM ZAVRŠETKA
B6: 100.00
B7: POČETNA TEŽINA
B8: 80.00 | C8: ANALIZA VJEŽBANJA
B10: ZAVRŠNA TEŽINA
B11: =PočetnaTežina-ZavršnaTežina -> 20
B12: CILJNI GUBITAK
B13: =DatumZavršetka-DatumPočetka -> 121
B14: DANA ZA GUBLJENJE
B15: =CiljnaTežina/B13 -> 0.17
B16: GUBITAK PO DANU

Sheet PREHRANA
B1: PREHRANA | G1: Ciljevi | H1: Vježbanje
B2: =Podnaslov -> DNEVNIK PREHRANE I VJEŽBANJA
B3: DATUM | C3: VRIJEME | D3: OPIS | E3: KALORIJE | F3: UGLJIKOHIDRATI | G3: PROTEINI | H3: MASNOĆE | I3: BILJEŠKE
B4: =DatumPočetka -> 2017-05-09 | C4: 07:00:00 | D4: Kava | E4: 1 | F4: 0 | G4: 0 | H4: 0 | I4: Jutarnja kava
B5: =DatumPočetka -> 2017-05-09 | C5: 08:00:00 | D5: Pecivo | E5: 10 | F5: 10 | G5: 2 | H5: 10 | I5: Lagani doručak
B6: =DatumPočetka -> 2017-05-09 | C6: 12:00:00 | D6: Ručak | E6: 283 | F6: 46 | G6: 18 | H6: 4 | I6: Sendvič s puretinom
B7: =DatumPočetka -> 2017-05-09 | C7: 19:00:00 | D7: Večera | E7: 500 | F7: 42 | G7: 35 | H7: 25 | I7: Francuski krumpir
B8: =DatumPočetka+1 -> 2017-05-10 | C8: 07:00:00 | D8: Kava | E8: 1 | F8: 0 | G8: 0 | H8: 0 | I8: Jutarnja kava
B9: =DatumPočetka+1 -> 2017-05-10 | C9: 08:00:00 | D9: Prepečenac | E9: 10 | F9: 10 | G9: 2 | H9: 10 | I9: Lagani doručak
B10: =DatumPočetka+1 -> 2017-05-10 | C10: 12:00:00 | D10: Ručak | E10: 189 | F10: 26 | G10: 3 | H10: 8 | I10: Sendvič
B11: =DatumPočetka+1 -> 2017-05-10 | C11: 19:00:00 | D11: Večera | E11: 477 | F11: 62 | G11: 14 | H11: 21 | I11: Večera
B12: =DatumPočetka+2 -> 2017-05-11 | C12: 07:00:00 | D12: Kava | E12: 1 | F12: 0 | G12: 0 | H12: 0 | I12: Jutarnja kava
B13: =DatumPočetka+2 -> 2017-05-11 | C13: 08:00:00 | D13: Pecivo | E13: 245 | F13: 48 | G13: 10 | H13: 2 | I13: Lagani doručak
B14: =DatumPočetka+2 -> 2017-05-11 | C14: 12:00:00 | D14: Ručak | E14: 247 | F14: 11 | G14: 43 | H14: 5 | I14: Salata
B15: =DatumPočetka+2 -> 2017-05-11 | C15: 19:00:00 | D15: Večera | E15: 456 | F15: 64 | G15: 32 | H15: 22 | I15: Večera
B16: =DatumPočetka+3 -> 2017-05-12 | C16: 07:00:00 | D16: Prepečenac | E16: 10 | F16: 10 | G16: 2 | H16: 10 | I16: Lagani doručak
B17: =DatumPočetka+3 -> 2017-05-12 | C17: 10:00:00 | D17: Kava | E17: 135 | F17: 12 | G17: 9 | H17: 6 | I17: Bijela kava
B18: =DatumPočetka+3 -> 2017-05-12 | C18: 12:15:00 | D18: Ručak | E18: 184 | F18: 7 | G18: 5 | H18: 15 | I18: Salata
B19: =DatumPočetka+5 -> 2017-05-14 | C19: 19:00:00 | D19: Večera | E19: 477 | F19: 62 | G19: 14 | H19: 21 | I19: Večera

Sheet VJEŽBANJE
B1: VJEŽBANJE | F1: Prehrana | G1: Ciljevi
B2: =Podnaslov -> DNEVNIK PREHRANE I VJEŽBANJA
B3: DATUM | C3: TRAJANJE (U MINUTAMA) | D3: POTROŠENO KALORIJA | E3: BILJEŠKE
B4: =DatumPočetka+4 -> 2017-05-13 | C4: 30 | D4: 120 | E4: Vježbanje na traci za trčanje
B5: =B4+1 -> 2017-05-14 | C5: 60 | D5: 180 | E5: Aerobne vježbe uz očuvanje zglobova
B6: =B5+1 -> 2017-05-15 | C6: 60 | D6: 350 | E6: Ekstremno vježbanje
B7: 2017-05-16 | C7: 30 | D7: 150 | E7: Vježbanje na traci za trčanje
B8: 2017-05-17 | C8: 25 | D8: 125 | E8: Trčanje
B9: 2017-05-18 | C9: 20 | D9: 285 | E9: Vježbanje na traci za trčanje
B10: 2017-05-19 | C10: 40 | D10: 205 | E10: Trčanje
B11: 2017-05-20 | C11: 30 | D11: 335 | E11: Trčanje
B12: 2017-05-21 | C12: 40 | D12: 175 | E12: Trčanje
B13: 2017-05-22 | C13: 45 | D13: 325 | E13: Vježbanje na traci za trčanje
B14: 2017-05-23 | C14: 40 | D14: 270 | E14: Trčanje
B15: 2017-05-24 | C15: 20 | D15: 295 | E15: Vježbanje na traci za trčanje
B16: 2017-05-25 | C16: 45 | D16: 350 | E16: Trčanje
B17: 2017-05-26 | C17: 35 | D17: 320 | E17: Trčanje
B18: 2017-05-27 | C18: 40 | D18: 290 | E18: Trčanje
B19: =B18+1 -> 2017-05-28 | C19: 25 | D19: 265 | E19: Vježbanje na traci za trčanje
B20: 2017-05-29 | C20: 20 | D20: 195 | E20: Trčanje

Sheet Izračuni grafikona (hidden)
B2: PODACI ZA GRAFIKON ANALIZE PREHRANE
B4: Početni redak | C4: =ROW(Prehrana[[#Headers],[DATUM]])+1 -> 4 | D4: DATUM | E4: DAN | F4: MASNOĆE | G4: PROTEINI | H4: UGLJIKOHIDRATI | I4: KALORIJE | J4: Br.
B5: Zadnji unos prehrane | C5: =MATCH(9.99E+307,Prehrana[DATUM])+PrehranaRedakPočetak-1 -> 19 | D5: =IFERROR(IF(INDEX(Prehrana[],PrehranaZadnjiKraj-PrehranaRedakPočetak-J5,1)<>"",INDEX(Prehrana[],PrehranaZadnjiKraj-PrehranaRedakPočetak-J5,1),""),"") -> 2017-05-09 | E5: =UPPER(TEXT(D5,"DDD")) -> UTO | F5: =IFERROR((IF(INDEX(Prehrana[],PrehranaZadnjiKraj-PrehranaRedakPočetak-J5,1)<>"",INDEX(Prehrana[],PrehranaZadnjiKraj-PrehranaRedakPočetak-J5,7),NA())),NA()) -> 3.5 | G5: =IFERROR((IF(INDEX(Prehrana[],PrehranaZadnjiKraj-PrehranaRedakPočetak-J5,1)<>"",INDEX(Prehrana[],PrehranaZadnjiKraj-PrehranaRedakPočetak-J5,6),NA())),NA()) -> 18 | H5: =IFERROR((IF(INDEX(Prehrana[],PrehranaZadnjiKraj-PrehranaRedakPočetak-J5,1)<>"",INDEX(Prehrana[],PrehranaZadnjiKraj-PrehranaRedakPočetak-J5,5),NA())),NA()) -> 46 | I5: =IFERROR((IF(INDEX(Prehrana[],PrehranaZadnjiKraj-PrehranaRedakPočetak-J5,1)<>"",INDEX(Prehrana[],PrehranaZadnjiKraj-PrehranaRedakPočetak-J5,4),NA())),NA()) -> 283 | J5: 12
D6: =IFERROR(IF(INDEX(Prehrana[],PrehranaZadnjiKraj-PrehranaRedakPočetak-J6,1)<>"",INDEX(Prehrana[],PrehranaZadnjiKraj-PrehranaRedakPočetak-J6,1),""),"") -> 2017-05-09 | E6: UTO | F6: =IFERROR((IF(INDEX(Prehrana[],PrehranaZadnjiKraj-PrehranaRedakPočetak-J6,1)<>"",INDEX(Prehrana[],PrehranaZadnjiKraj-PrehranaRedakPočetak-J6,7),NA())),NA()) -> 25 | G6: =IFERROR((IF(INDEX(Prehrana[],PrehranaZadnjiKraj-PrehranaRedakPočetak-J6,1)<>"",INDEX(Prehrana[],PrehranaZadnjiKraj-PrehranaRedakPočetak-J6,6),NA())),NA()) -> 35 | H6: =IFERROR((IF(INDEX(Prehrana[],PrehranaZadnjiKraj-PrehranaRedakPočetak-J6,1)<>"",INDEX(Prehrana[],PrehranaZadnjiKraj-PrehranaRedakPočetak-J6,5),NA())),NA()) -> 42 | I6: =IFERROR((IF(INDEX(Prehrana[],PrehranaZadnjiKraj-PrehranaRedakPočetak-J6,1)<>"",INDEX(Prehrana[],PrehranaZadnjiKraj-PrehranaRedakPočetak-J6,4),NA())),NA()) -> 500 | J6: 11
D7: =IFERROR(IF(INDEX(Prehrana[],PrehranaZadnjiKraj-PrehranaRedakPočetak-J7,1)<>"",INDEX(Prehrana[],PrehranaZadnjiKraj-PrehranaRedakPočetak-J7,1),""),"") -> 2017-05-10 | E7: SRI | F7: =IFERROR((IF(INDEX(Prehrana[],PrehranaZadnjiKraj-PrehranaRedakPočetak-J7,1)<>"",INDEX(Prehrana[],PrehranaZadnjiKraj-PrehranaRedakPočetak-J7,7),NA())),NA()) -> 0 | G7: =IFERROR((IF(INDEX(Prehrana[],PrehranaZadnjiKraj-PrehranaRedakPočetak-J7,1)<>"",INDEX(Prehrana[],PrehranaZadnjiKraj-PrehranaRedakPočetak-J7,6),NA())),NA()) -> 0 | H7: =IFERROR((IF(INDEX(Prehrana[],PrehranaZadnjiKraj-PrehranaRedakPočetak-J7,1)<>"",INDEX(Prehrana[],PrehranaZadnjiKraj-PrehranaRedakPočetak-J7,5),NA())),NA()) -> 0 | I7: =IFERROR((IF(INDEX(Prehrana[],PrehranaZadnjiKraj-PrehranaRedakPočetak-J7,1)<>"",INDEX(Prehrana[],PrehranaZadnjiKraj-PrehranaRedakPočetak-J7,4),NA())),NA()) -> 1 | J7: 10
D8: =IFERROR(IF(INDEX(Prehrana[],PrehranaZadnjiKraj-PrehranaRedakPočetak-J8,1)<>"",INDEX(Prehrana[],PrehranaZadnjiKraj-PrehranaRedakPočetak-J8,1),""),"") -> 2017-05-10 | E8: SRI | F8: =IFERROR((IF(INDEX(Prehrana[],PrehranaZadnjiKraj-PrehranaRedakPočetak-J8,1)<>"",INDEX(Prehrana[],PrehranaZadnjiKraj-PrehranaRedakPočetak-J8,7),NA())),NA()) -> 10 | G8: =IFERROR((IF(INDEX(Prehrana[],PrehranaZadnjiKraj-PrehranaRedakPočetak-J8,1)<>"",INDEX(Prehrana[],PrehranaZadnjiKraj-PrehranaRedakPočetak-J8,6),NA())),NA()) -> 2 | H8: =IFERROR((IF(INDEX(Prehrana[],PrehranaZadnjiKraj-PrehranaRedakPočetak-J8,1)<>"",INDEX(Prehrana[],PrehranaZadnjiKraj-PrehranaRedakPočetak-J8,5),NA())),NA()) -> 10 | I8: =IFERROR((IF(INDEX(Prehrana[],PrehranaZadnjiKraj-PrehranaRedakPočetak-J8,1)<>"",INDEX(Prehrana[],PrehranaZadnjiKraj-PrehranaRedakPočetak-J8,4),NA())),NA()) -> 10 | J8: 9
D9: =IFERROR(IF(INDEX(Prehrana[],PrehranaZadnjiKraj-PrehranaRedakPočetak-J9,1)<>"",INDEX(Prehrana[],PrehranaZadnjiKraj-PrehranaRedakPočetak-J9,1),""),"") -> 2017-05-10 | E9: SRI | F9: =IFERROR((IF(INDEX(Prehrana[],PrehranaZadnjiKraj-PrehranaRedakPočetak-J9,1)<>"",INDEX(Prehrana[],PrehranaZadnjiKraj-PrehranaRedakPočetak-J9,7),NA())),NA()) -> 8 | G9: =IFERROR((IF(INDEX(Prehrana[],PrehranaZadnjiKraj-PrehranaRedakPočetak-J9,1)<>"",INDEX(Prehrana[],PrehranaZadnjiKraj-PrehranaRedakPočetak-J9,6),NA())),NA()) -> 3 | H9: =IFERROR((IF(INDEX(Prehrana[],PrehranaZadnjiKraj-PrehranaRedakPočetak-J9,1)<>"",INDEX(Prehrana[],PrehranaZadnjiKraj-PrehranaRedakPočetak-J9,5),NA())),NA()) -> 26 | I9: =IFERROR((IF(INDEX(Prehrana[],PrehranaZadnjiKraj-PrehranaRedakPočetak-J9,1)<>"",INDEX(Prehrana[],PrehranaZadnjiKraj-PrehranaRedakPočetak-J9,4),NA())),NA()) -> 189 | J9: 8
D10: =IFERROR(IF(INDEX(Prehrana[],PrehranaZadnjiKraj-PrehranaRedakPočetak-J10,1)<>"",INDEX(Prehrana[],PrehranaZadnjiKraj-PrehranaRedakPočetak-J10,1),""),"") -> 2017-05-10 | E10: SRI | F10: =IFERROR((IF(INDEX(Prehrana[],PrehranaZadnjiKraj-PrehranaRedakPočetak-J10,1)<>"",INDEX(Prehrana[],PrehranaZadnjiKraj-PrehranaRedakPočetak-J10,7),NA())),NA()) -> 21 | G10: =IFERROR((IF(INDEX(Prehrana[],PrehranaZadnjiKraj-PrehranaRedakPočetak-J10,1)<>"",INDEX(Prehrana[],PrehranaZadnjiKraj-PrehranaRedakPočetak-J10,6),NA())),NA()) -> 13.5 | H10: =IFERROR((IF(INDEX(Prehrana[],PrehranaZadnjiKraj-PrehranaRedakPočetak-J10,1)<>"",INDEX(Prehrana[],PrehranaZadnjiKraj-PrehranaRedakPočetak-J10,5),NA())),NA()) -> 62 | I10: =IFERROR((IF(INDEX(Prehrana[],PrehranaZadnjiKraj-PrehranaRedakPočetak-J10,1)<>"",INDEX(Prehrana[],PrehranaZadnjiKraj-PrehranaRedakPočetak-J10,4),NA())),NA()) -> 477 | J10: 7
D11: =IFERROR(IF(INDEX(Prehrana[],PrehranaZadnjiKraj-PrehranaRedakPočetak-J11,1)<>"",INDEX(Prehrana[],PrehranaZadnjiKraj-PrehranaRedakPočetak-J11,1),""),"") -> 2017-05-11 | E11: ČET | F11: =IFERROR((IF(INDEX(Prehrana[],PrehranaZadnjiKraj-PrehranaRedakPočetak-J11,1)<>"",INDEX(Prehrana[],PrehranaZadnjiKraj-PrehranaRedakPočetak-J11,7),NA())),NA()) -> 0 | G11: =IFERROR((IF(INDEX(Prehrana[],PrehranaZadnjiKraj-PrehranaRedakPočetak-J11,1)<>"",INDEX(Prehrana[],PrehranaZadnjiKraj-PrehranaRedakPočetak-J11,6),NA())),NA()) -> 0 | H11: =IFERROR((IF(INDEX(Prehrana[],PrehranaZadnjiKraj-PrehranaRedakPočetak-J11,1)<>"",INDEX(Prehrana[],PrehranaZadnjiKraj-PrehranaRedakPočetak-J11,5),NA())),NA()) -> 0 | I11: =IFERROR((IF(INDEX(Prehrana[],PrehranaZadnjiKraj-PrehranaRedakPočetak-J11,1)<>"",INDEX(Prehrana[],PrehranaZadnjiKraj-PrehranaRedakPočetak-J11,4),NA())),NA()) -> 1 | J11: 6
D12: =IFERROR(IF(INDEX(Prehrana[],PrehranaZadnjiKraj-PrehranaRedakPočetak-J12,1)<>"",INDEX(Prehrana[],PrehranaZadnjiKraj-PrehranaRedakPočetak-J12,1),""),"") -> 2017-05-11 | E12: ČET | F12: =IFERROR((IF(INDEX(Prehrana[],PrehranaZadnjiKraj-PrehranaRedakPočetak-J12,1)<>"",INDEX(Prehrana[],PrehranaZadnjiKraj-PrehranaRedakPočetak-J12,7),NA())),NA()) -> 1.5 | G12: =IFERROR((IF(INDEX(Prehrana[],PrehranaZadnjiKraj-PrehranaRedakPočetak-J12,1)<>"",INDEX(Prehrana[],PrehranaZadnjiKraj-PrehranaRedakPočetak-J12,6),NA())),NA()) -> 10 | H12: =IFERROR((IF(INDEX(Prehrana[],PrehranaZadnjiKraj-PrehranaRedakPočetak-J12,1)<>"",INDEX(Prehrana[],PrehranaZadnjiKraj-PrehranaRedakPočetak-J12,5),NA())),NA()) -> 48 | I12: =IFERROR((IF(INDEX(Prehrana[],PrehranaZadnjiKraj-PrehranaRedakPočetak-J12,1)<>"",INDEX(Prehrana[],PrehranaZadnjiKraj-PrehranaRedakPočetak-J12,4),NA())),NA()) -> 245 | J12: 5
D13: =IFERROR(IF(INDEX(Prehrana[],PrehranaZadnjiKraj-PrehranaRedakPočetak-J13,1)<>"",INDEX(Prehrana[],PrehranaZadnjiKraj-PrehranaRedakPočetak-J13,1),""),"") -> 2017-05-11 | E13: ČET | F13: =IFERROR((IF(INDEX(Prehrana[],PrehranaZadnjiKraj-PrehranaRedakPočetak-J13,1)<>"",INDEX(Prehrana[],PrehranaZadnjiKraj-PrehranaRedakPočetak-J13,7),NA())),NA()) -> 5 | G13: =IFERROR((IF(INDEX(Prehrana[],PrehranaZadnjiKraj-PrehranaRedakPočetak-J13,1)<>"",INDEX(Prehrana[],PrehranaZadnjiKraj-PrehranaRedakPočetak-J13,6),NA())),NA()) -> 43 | H13: =IFERROR((IF(INDEX(Prehrana[],PrehranaZadnjiKraj-PrehranaRedakPočetak-J13,1)<>"",INDEX(Prehrana[],PrehranaZadnjiKraj-PrehranaRedakPočetak-J13,5),NA())),NA()) -> 11 | I13: =IFERROR((IF(INDEX(Prehrana[],PrehranaZadnjiKraj-PrehranaRedakPočetak-J13,1)<>"",INDEX(Prehrana[],PrehranaZadnjiKraj-PrehranaRedakPočetak-J13,4),NA())),NA()) -> 247 | J13: 4
D14: =IFERROR(IF(INDEX(Prehrana[],PrehranaZadnjiKraj-PrehranaRedakPočetak-J14,1)<>"",INDEX(Prehrana[],PrehranaZadnjiKraj-PrehranaRedakPočetak-J14,1),""),"") -> 2017-05-11 | E14: ČET | F14: =IFERROR((IF(INDEX(Prehrana[],PrehranaZadnjiKraj-PrehranaRedakPočetak-J14,1)<>"",INDEX(Prehrana[],PrehranaZadnjiKraj-PrehranaRedakPočetak-J14,7),NA())),NA()) -> 22 | G14: =IFERROR((IF(INDEX(Prehrana[],PrehranaZadnjiKraj-PrehranaRedakPočetak-J14,1)<>"",INDEX(Prehrana[],PrehranaZadnjiKraj-PrehranaRedakPočetak-J14,6),NA())),NA()) -> 32 | H14: =IFERROR((IF(INDEX(Prehrana[],PrehranaZadnjiKraj-PrehranaRedakPočetak-J14,1)<>"",INDEX(Prehrana[],PrehranaZadnjiKraj-PrehranaRedakPočetak-J14,5),NA())),NA()) -> 64 | I14: =IFERROR((IF(INDEX(Prehrana[],PrehranaZadnjiKraj-PrehranaRedakPočetak-J14,1)<>"",INDEX(Prehrana[],PrehranaZadnjiKraj-PrehranaRedakPočetak-J14,4),NA())),NA()) -> 456 | J14: 3
D15: =IFERROR(IF(INDEX(Prehrana[],PrehranaZadnjiKraj-PrehranaRedakPočetak-J15,1)<>"",INDEX(Prehrana[],PrehranaZadnjiKraj-PrehranaRedakPočetak-J15,1),""),"") -> 2017-05-12 | E15: PET | F15: =IFERROR((IF(INDEX(Prehrana[],PrehranaZadnjiKraj-PrehranaRedakPočetak-J15,1)<>"",INDEX(Prehrana[],PrehranaZadnjiKraj-PrehranaRedakPočetak-J15,7),NA())),NA()) -> 10 | G15: =IFERROR((IF(INDEX(Prehrana[],PrehranaZadnjiKraj-PrehranaRedakPočetak-J15,1)<>"",INDEX(Prehrana[],PrehranaZadnjiKraj-PrehranaRedakPočetak-J15,6),NA())),NA()) -> 2 | H15: =IFERROR((IF(INDEX(Prehrana[],PrehranaZadnjiKraj-PrehranaRedakPočetak-J15,1)<>"",INDEX(Prehrana[],PrehranaZadnjiKraj-PrehranaRedakPočetak-J15,5),NA())),NA()) -> 10 | I15: =IFERROR((IF(INDEX(Prehrana[],PrehranaZadnjiKraj-PrehranaRedakPočetak-J15,1)<>"",INDEX(Prehrana[],PrehranaZadnjiKraj-PrehranaRedakPočetak-J15,4),NA())),NA()) -> 10 | J15: 2
D16: =IFERROR(IF(INDEX(Prehrana[],PrehranaZadnjiKraj-PrehranaRedakPočetak-J16,1)<>"",INDEX(Prehrana[],PrehranaZadnjiKraj-PrehranaRedakPočetak-J16,1),""),"") -> 2017-05-12 | E16: PET | F16: =IFERROR((IF(INDEX(Prehrana[],PrehranaZadnjiKraj-PrehranaRedakPočetak-J16,1)<>"",INDEX(Prehrana[],PrehranaZadnjiKraj-PrehranaRedakPočetak-J16,7),NA())),NA()) -> 5.51 | G16: =IFERROR((IF(INDEX(Prehrana[],PrehranaZadnjiKraj-PrehranaRedakPočetak-J16,1)<>"",INDEX(Prehrana[],PrehranaZadnjiKraj-PrehranaRedakPočetak-J16,6),NA())),NA()) -> 8.81 | H16: =IFERROR((IF(INDEX(Prehrana[],PrehranaZadnjiKraj-PrehranaRedakPočetak-J16,1)<>"",INDEX(Prehrana[],PrehranaZadnjiKraj-PrehranaRedakPočetak-J16,5),NA())),NA()) -> 12.36 | I16: =IFERROR((IF(INDEX(Prehrana[],PrehranaZadnjiKraj-PrehranaRedakPočetak-J16,1)<>"",INDEX(Prehrana[],PrehranaZadnjiKraj-PrehranaRedakPočetak-J16,4),NA())),NA()) -> 135 | J16: 1
D17: =IFERROR(IF(INDEX(Prehrana[],PrehranaZadnjiKraj-PrehranaRedakPočetak-J17,1)<>"",INDEX(Prehrana[],PrehranaZadnjiKraj-PrehranaRedakPočetak-J17,1),""),"") -> 2017-05-12 | E17: PET | F17: =IFERROR((IF(INDEX(Prehrana[],PrehranaZadnjiKraj-PrehranaRedakPočetak-J17,1)<>"",INDEX(Prehrana[],PrehranaZadnjiKraj-PrehranaRedakPočetak-J17,7),NA())),NA()) -> 15 | G17: =IFERROR((IF(INDEX(Prehrana[],PrehranaZadnjiKraj-PrehranaRedakPočetak-J17,1)<>"",INDEX(Prehrana[],PrehranaZadnjiKraj-PrehranaRedakPočetak-J17,6),NA())),NA()) -> 5.43 | H17: =IFERROR((IF(INDEX(Prehrana[],PrehranaZadnjiKraj-PrehranaRedakPočetak-J17,1)<>"",INDEX(Prehrana[],PrehranaZadnjiKraj-PrehranaRedakPočetak-J17,5),NA())),NA()) -> 7 | I17: =IFERROR((IF(INDEX(Prehrana[],PrehranaZadnjiKraj-PrehranaRedakPočetak-J17,1)<>"",INDEX(Prehrana[],PrehranaZadnjiKraj-PrehranaRedakPočetak-J17,4),NA())),NA()) -> 184 | J17: 0
D18: =IFERROR(IF(INDEX(Prehrana[],PrehranaZadnjiKraj-PrehranaRedakPočetak-J18,1)<>"",INDEX(Prehrana[],PrehranaZadnjiKraj-PrehranaRedakPočetak-J18,1),""),"") -> 2017-05-14 | E18: NED | F18: =IFERROR((IF(INDEX(Prehrana[],PrehranaZadnjiKraj-PrehranaRedakPočetak-J18,1)<>"",INDEX(Prehrana[],PrehranaZadnjiKraj-PrehranaRedakPočetak-J18,7),NA())),NA()) -> 21 | G18: =IFERROR((IF(INDEX(Prehrana[],PrehranaZadnjiKraj-PrehranaRedakPočetak-J18,1)<>"",INDEX(Prehrana[],PrehranaZadnjiKraj-PrehranaRedakPočetak-J18,6),NA())),NA()) -> 13.5 | H18: =IFERROR((IF(INDEX(Prehrana[],PrehranaZadnjiKraj-PrehranaRedakPočetak-J18,1)<>"",INDEX(Prehrana[],PrehranaZadnjiKraj-PrehranaRedakPočetak-J18,5),NA())),NA()) -> 62 | I18: =IFERROR((IF(INDEX(Prehrana[],PrehranaZadnjiKraj-PrehranaRedakPočetak-J18,1)<>"",INDEX(Prehrana[],PrehranaZadnjiKraj-PrehranaRedakPočetak-J18,4),NA())),NA()) -> 477 | J18: -1
B20: PODACI ZA GRAFIKON ANALIZE VJEŽBANJA
B22: Početni redak | C22: =ROW(Vježbanje[[#Headers],[DATUM]])+1 -> 4 | D22: DATUM | E22: DAN | F22: TRAJANJE (U MINUTAMA) | G22: POTROŠENO KALORIJA | H22: Br.
B23: Zadnji unos vježbanja | C23: =MATCH(9.99E+307,Vježbanje[DATUM])+PočetakRetkaVježbanja-1 -> 20 | D23: =IFERROR(IF(INDEX(Vježbanje[],VježbanjeZadnjeKraj-PočetakRetkaVježbanja-H23,1)<>"",INDEX(Vježbanje[],VježbanjeZadnjeKraj-PočetakRetkaVježbanja-H23,1)),"") -> 2017-05-29 | E23: =UPPER(TEXT(D23,"DDD")) -> PON | F23: =IFERROR((IF(INDEX(Vježbanje[],VježbanjeZadnjeKraj-PočetakRetkaVježbanja-H23,1)<>"",INDEX(Vježbanje[],VježbanjeZadnjeKraj-PočetakRetkaVježbanja-H23,2),0)),0) -> 20 | G23: =IFERROR((IF(INDEX(Vježbanje[],VježbanjeZadnjeKraj-PočetakRetkaVježbanja-H23,2)<>"",INDEX(Vježbanje[],VježbanjeZadnjeKraj-PočetakRetkaVježbanja-H23,3),0)),0) -> 195 | H23: -1
D24: =IFERROR(IF(INDEX(Vježbanje[],VježbanjeZadnjeKraj-PočetakRetkaVježbanja-H24,1)<>"",INDEX(Vježbanje[],VježbanjeZadnjeKraj-PočetakRetkaVježbanja-H24,1)),"") -> 2017-05-28 | E24: NED | F24: =IFERROR((IF(INDEX(Vježbanje[],VježbanjeZadnjeKraj-PočetakRetkaVježbanja-H24,1)<>"",INDEX(Vježbanje[],VježbanjeZadnjeKraj-PočetakRetkaVježbanja-H24,2),0)),0) -> 25 | G24: =IFERROR((IF(INDEX(Vježbanje[],VježbanjeZadnjeKraj-PočetakRetkaVježbanja-H24,2)<>"",INDEX(Vježbanje[],VježbanjeZadnjeKraj-PočetakRetkaVježbanja-H24,3),0)),0) -> 265 | H24: 0
D25: =IFERROR(IF(INDEX(Vježbanje[],VježbanjeZadnjeKraj-PočetakRetkaVježbanja-H25,1)<>"",INDEX(Vježbanje[],VježbanjeZadnjeKraj-PočetakRetkaVježbanja-H25,1)),"") -> 2017-05-27 | E25: SUB | F25: =IFERROR((IF(INDEX(Vježbanje[],VježbanjeZadnjeKraj-PočetakRetkaVježbanja-H25,1)<>"",INDEX(Vježbanje[],VježbanjeZadnjeKraj-PočetakRetkaVježbanja-H25,2),0)),0) -> 40 | G25: =IFERROR((IF(INDEX(Vježbanje[],VježbanjeZadnjeKraj-PočetakRetkaVježbanja-H25,2)<>"",INDEX(Vježbanje[],VježbanjeZadnjeKraj-PočetakRetkaVježbanja-H25,3),0)),0) -> 290 | H25: 1
D26: =IFERROR(IF(INDEX(Vježbanje[],VježbanjeZadnjeKraj-PočetakRetkaVježbanja-H26,1)<>"",INDEX(Vježbanje[],VježbanjeZadnjeKraj-PočetakRetkaVježbanja-H26,1)),"") -> 2017-05-26 | E26: PET | F26: =IFERROR((IF(INDEX(Vježbanje[],VježbanjeZadnjeKraj-PočetakRetkaVježbanja-H26,1)<>"",INDEX(Vježbanje[],VježbanjeZadnjeKraj-PočetakRetkaVježbanja-H26,2),0)),0) -> 35 | G26: =IFERROR((IF(INDEX(Vježbanje[],VježbanjeZadnjeKraj-PočetakRetkaVježbanja-H26,2)<>"",INDEX(Vježbanje[],VježbanjeZadnjeKraj-PočetakRetkaVježbanja-H26,3),0)),0) -> 320 | H26: 2
D27: =IFERROR(IF(INDEX(Vježbanje[],VježbanjeZadnjeKraj-PočetakRetkaVježbanja-H27,1)<>"",INDEX(Vježbanje[],VježbanjeZadnjeKraj-PočetakRetkaVježbanja-H27,1)),"") -> 2017-05-25 | E27: ČET | F27: =IFERROR((IF(INDEX(Vježbanje[],VježbanjeZadnjeKraj-PočetakRetkaVježbanja-H27,1)<>"",INDEX(Vježbanje[],VježbanjeZadnjeKraj-PočetakRetkaVježbanja-H27,2),0)),0) -> 45 | G27: =IFERROR((IF(INDEX(Vježbanje[],VježbanjeZadnjeKraj-PočetakRetkaVježbanja-H27,2)<>"",INDEX(Vježbanje[],VježbanjeZadnjeKraj-PočetakRetkaVježbanja-H27,3),0)),0) -> 350 | H27: 3
D28: =IFERROR(IF(INDEX(Vježbanje[],VježbanjeZadnjeKraj-PočetakRetkaVježbanja-H28,1)<>"",INDEX(Vježbanje[],VježbanjeZadnjeKraj-PočetakRetkaVježbanja-H28,1)),"") -> 2017-05-24 | E28: SRI | F28: =IFERROR((IF(INDEX(Vježbanje[],VježbanjeZadnjeKraj-PočetakRetkaVježbanja-H28,1)<>"",INDEX(Vježbanje[],VježbanjeZadnjeKraj-PočetakRetkaVježbanja-H28,2),0)),0) -> 20 | G28: =IFERROR((IF(INDEX(Vježbanje[],VježbanjeZadnjeKraj-PočetakRetkaVježbanja-H28,2)<>"",INDEX(Vježbanje[],VježbanjeZadnjeKraj-PočetakRetkaVježbanja-H28,3),0)),0) -> 295 | H28: 4
D29: =IFERROR(IF(INDEX(Vježbanje[],VježbanjeZadnjeKraj-PočetakRetkaVježbanja-H29,1)<>"",INDEX(Vježbanje[],VježbanjeZadnjeKraj-PočetakRetkaVježbanja-H29,1)),"") -> 2017-05-23 | E29: UTO | F29: =IFERROR((IF(INDEX(Vježbanje[],VježbanjeZadnjeKraj-PočetakRetkaVježbanja-H29,1)<>"",INDEX(Vježbanje[],VježbanjeZadnjeKraj-PočetakRetkaVježbanja-H29,2),0)),0) -> 40 | G29: =IFERROR((IF(INDEX(Vježbanje[],VježbanjeZadnjeKraj-PočetakRetkaVježbanja-H29,2)<>"",INDEX(Vježbanje[],VježbanjeZadnjeKraj-PočetakRetkaVježbanja-H29,3),0)),0) -> 270 | H29: 5
D30: =IFERROR(IF(INDEX(Vježbanje[],VježbanjeZadnjeKraj-PočetakRetkaVježbanja-H30,1)<>"",INDEX(Vježbanje[],VježbanjeZadnjeKraj-PočetakRetkaVježbanja-H30,1)),"") -> 2017-05-22 | E30: PON | F30: =IFERROR((IF(INDEX(Vježbanje[],VježbanjeZadnjeKraj-PočetakRetkaVježbanja-H30,1)<>"",INDEX(Vježbanje[],VježbanjeZadnjeKraj-PočetakRetkaVježbanja-H30,2),0)),0) -> 45 | G30: =IFERROR((IF(INDEX(Vježbanje[],VježbanjeZadnjeKraj-PočetakRetkaVježbanja-H30,2)<>"",INDEX(Vježbanje[],VježbanjeZadnjeKraj-PočetakRetkaVježbanja-H30,3),0)),0) -> 325 | H30: 6
D31: =IFERROR(IF(INDEX(Vježbanje[],VježbanjeZadnjeKraj-PočetakRetkaVježbanja-H31,1)<>"",INDEX(Vježbanje[],VježbanjeZadnjeKraj-PočetakRetkaVježbanja-H31,1)),"") -> 2017-05-21 | E31: NED | F31: =IFERROR((IF(INDEX(Vježbanje[],VježbanjeZadnjeKraj-PočetakRetkaVježbanja-H31,1)<>"",INDEX(Vježbanje[],VježbanjeZadnjeKraj-PočetakRetkaVježbanja-H31,2),0)),0) -> 40 | G31: =IFERROR((IF(INDEX(Vježbanje[],VježbanjeZadnjeKraj-PočetakRetkaVježbanja-H31,2)<>"",INDEX(Vježbanje[],VježbanjeZadnjeKraj-PočetakRetkaVježbanja-H31,3),0)),0) -> 175 | H31: 7
D32: =IFERROR(IF(INDEX(Vježbanje[],VježbanjeZadnjeKraj-PočetakRetkaVježbanja-H32,1)<>"",INDEX(Vježbanje[],VježbanjeZadnjeKraj-PočetakRetkaVježbanja-H32,1)),"") -> 2017-05-20 | E32: SUB | F32: =IFERROR((IF(INDEX(Vježbanje[],VježbanjeZadnjeKraj-PočetakRetkaVježbanja-H32,1)<>"",INDEX(Vježbanje[],VježbanjeZadnjeKraj-PočetakRetkaVježbanja-H32,2),0)),0) -> 30 | G32: =IFERROR((IF(INDEX(Vježbanje[],VježbanjeZadnjeKraj-PočetakRetkaVježbanja-H32,2)<>"",INDEX(Vježbanje[],VježbanjeZadnjeKraj-PočetakRetkaVježbanja-H32,3),0)),0) -> 335 | H32: 8
D33: =IFERROR(IF(INDEX(Vježbanje[],VježbanjeZadnjeKraj-PočetakRetkaVježbanja-H33,1)<>"",INDEX(Vježbanje[],VježbanjeZadnjeKraj-PočetakRetkaVježbanja-H33,1)),"") -> 2017-05-19 | E33: PET | F33: =IFERROR((IF(INDEX(Vježbanje[],VježbanjeZadnjeKraj-PočetakRetkaVježbanja-H33,1)<>"",INDEX(Vježbanje[],VježbanjeZadnjeKraj-PočetakRetkaVježbanja-H33,2),0)),0) -> 40 | G33: =IFERROR((IF(INDEX(Vježbanje[],VježbanjeZadnjeKraj-PočetakRetkaVježbanja-H33,2)<>"",INDEX(Vježbanje[],VježbanjeZadnjeKraj-PočetakRetkaVježbanja-H33,3),0)),0) -> 205 | H33: 9
D34: =IFERROR(IF(INDEX(Vježbanje[],VježbanjeZadnjeKraj-PočetakRetkaVježbanja-H34,1)<>"",INDEX(Vježbanje[],VježbanjeZadnjeKraj-PočetakRetkaVježbanja-H34,1)),"") -> 2017-05-18 | E34: ČET | F34: =IFERROR((IF(INDEX(Vježbanje[],VježbanjeZadnjeKraj-PočetakRetkaVježbanja-H34,1)<>"",INDEX(Vježbanje[],VježbanjeZadnjeKraj-PočetakRetkaVježbanja-H34,2),0)),0) -> 20 | G34: =IFERROR((IF(INDEX(Vježbanje[],VježbanjeZadnjeKraj-PočetakRetkaVježbanja-H34,2)<>"",INDEX(Vježbanje[],VježbanjeZadnjeKraj-PočetakRetkaVježbanja-H34,3),0)),0) -> 285 | H34: 10
D35: =IFERROR(IF(INDEX(Vježbanje[],VježbanjeZadnjeKraj-PočetakRetkaVježbanja-H35,1)<>"",INDEX(Vježbanje[],VježbanjeZadnjeKraj-PočetakRetkaVježbanja-H35,1)),"") -> 2017-05-17 | E35: SRI | F35: =IFERROR((IF(INDEX(Vježbanje[],VježbanjeZadnjeKraj-PočetakRetkaVježbanja-H35,1)<>"",INDEX(Vježbanje[],VježbanjeZadnjeKraj-PočetakRetkaVježbanja-H35,2),0)),0) -> 25 | G35: =IFERROR((IF(INDEX(Vježbanje[],VježbanjeZadnjeKraj-PočetakRetkaVježbanja-H35,2)<>"",INDEX(Vježbanje[],VježbanjeZadnjeKraj-PočetakRetkaVježbanja-H35,3),0)),0) -> 125 | H35: 11
D36: =IFERROR(IF(INDEX(Vježbanje[],VježbanjeZadnjeKraj-PočetakRetkaVježbanja-H36,1)<>"",INDEX(Vježbanje[],VježbanjeZadnjeKraj-PočetakRetkaVježbanja-H36,1)),"") -> 2017-05-16 | E36: UTO | F36: =IFERROR((IF(INDEX(Vježbanje[],VježbanjeZadnjeKraj-PočetakRetkaVježbanja-H36,1)<>"",INDEX(Vježbanje[],VježbanjeZadnjeKraj-PočetakRetkaVježbanja-H36,2),0)),0) -> 30 | G36: =IFERROR((IF(INDEX(Vježbanje[],VježbanjeZadnjeKraj-PočetakRetkaVježbanja-H36,2)<>"",INDEX(Vježbanje[],VježbanjeZadnjeKraj-PočetakRetkaVježbanja-H36,3),0)),0) -> 150 | H36: 12
